[Event "Titled Tuesday Blitz October 31 Early 2023"]
[White "Chinguun, Sumiya"]
[Black "Saydaliev, Saidakbar"]
[WhiteFideId "4902572"]
[BlackFideId "14203693"]
[WhiteElo "2674"]
[BlackElo "2786"]
[Result "1-0"]
[Round "11"]
[TimeControl "180+1"]
[Date "2023.10.31"]
[WhiteClock "0:02:33"]
[BlackClock "0:00:49"]
[Board "18"]

1. e4 {[%clk 0:03:00]}  e5 {[%clk 0:02:55]} 2. Nf3 {[%clk 0:02:59]}  Nc6 {[%clk 0:02:55]} 3. Bc4 {[%clk 0:02:58]}  Nf6 {[%clk 0:02:56]} 4. d3 {[%clk 0:02:58]}  Bc5 {[%clk 0:02:56]} 5. c3 {[%clk 0:02:58]}  a6 {[%clk 0:02:56]} 6. O-O {[%clk 0:02:55]}  d6 {[%clk 0:02:53]} 7. a4 {[%clk 0:02:55]}  h6 {[%clk 0:02:51]} 8. Nbd2 {[%clk 0:02:53]}  O-O {[%clk 0:02:51]} 9. Re1 {[%clk 0:02:53]}  Be6 {[%clk 0:02:41]} 10. Nf1 {[%clk 0:02:49]}  Bxc4 {[%clk 0:02:38]} 11. dxc4 {[%clk 0:02:49]}  a5 {[%clk 0:02:37]} 12. Ng3 {[%clk 0:02:48]}  Ne7 {[%clk 0:02:37]} 13. Nh4 {[%clk 0:02:47]}  Qd7 {[%clk 0:02:28]} 14. Nhf5 {[%clk 0:02:45]}  Nxf5 {[%clk 0:02:27]} 15. Nxf5 {[%clk 0:02:45]}  Nxe4 {[%clk 0:02:13]} 16. Qg4 {[%clk 0:02:37]}  Bxf2+ {[%clk 0:01:24]} 17. Kf1 {[%clk 0:02:36]}  g6 {[%clk 0:00:52]} 18. Nxh6+ {[%clk 0:02:34]}  Kg7 {[%clk 0:00:53]} 19. Qxd7 {[%clk 0:02:33]}  Bxe1 {[%clk 0:00:49]} 20. Kxe1 {[%clk 0:02:33]} 1-0


[Site "https://www.chess.com"]

[Event "Titled Tuesday Blitz October 31 Early 2023"]
[White "Csonka, Balazs"]
[Black "Theodorou, Nikolas"]
[WhiteFideId "742910"]
[BlackFideId "4262875"]
[WhiteElo "2736"]
[BlackElo "2993"]
[Result "1-0"]
[Round "11"]
[TimeControl "180+1"]
[Date "2023.10.31"]
[WhiteClock "0:00:16"]
[BlackClock "0:01:47"]
[Board "20"]

1. d4 {[%clk 0:03:00]}  Nf6 {[%clk 0:02:57]} 2. c4 {[%clk 0:03:00]}  g6 {[%clk 0:02:57]} 3. Nc3 {[%clk 0:02:59]}  Bg7 {[%clk 0:02:58]} 4. e4 {[%clk 0:02:58]}  d6 {[%clk 0:02:58]} 5. Nf3 {[%clk 0:02:57]}  O-O {[%clk 0:02:57]} 6. Be2 {[%clk 0:02:57]}  a6 {[%clk 0:02:52]} 7. O-O {[%clk 0:02:54]}  Ra7 {[%clk 0:02:52]} 8. h3 {[%clk 0:02:46]}  b6 {[%clk 0:02:51]} 9. Be3 {[%clk 0:02:45]}  c5 {[%clk 0:02:51]} 10. Qc2 {[%clk 0:02:32]}  Rc7 {[%clk 0:02:44]} 11. Rfd1 {[%clk 0:02:27]}  Nbd7 {[%clk 0:02:41]} 12. e5 {[%clk 0:02:19]}  Ne8 {[%clk 0:02:40]} 13. Nd5 {[%clk 0:02:11]}  Ra7 {[%clk 0:02:38]} 14. Bg5 {[%clk 0:02:08]}  f6 {[%clk 0:02:37]} 15. Bh4 {[%clk 0:01:58]}  cxd4 {[%clk 0:02:25]} 16. exd6 {[%clk 0:01:22]}  Nxd6 {[%clk 0:02:24]} 17. Nxd4 {[%clk 0:01:21]}  Nb8 {[%clk 0:02:18]} 18. b4 {[%clk 0:01:05]}  e5 {[%clk 0:02:11]} 19. c5 {[%clk 0:00:48]}  exd4 {[%clk 0:02:10]} 20. cxd6 {[%clk 0:00:47]}  Qxd6 {[%clk 0:02:10]} 21. Rxd4 {[%clk 0:00:47]}  Nc6 {[%clk 0:02:07]} 22. Rdd1 {[%clk 0:00:36]}  Kh8 {[%clk 0:02:03]} 23. Bg3 {[%clk 0:00:31]}  Qe6 {[%clk 0:01:59]} 24. Rac1 {[%clk 0:00:30]}  Bd7 {[%clk 0:01:55]} 25. Nc7 {[%clk 0:00:23]}  Qf7 {[%clk 0:01:51]} 26. Rxd7 {[%clk 0:00:22]}  Qxd7 {[%clk 0:01:52]} 27. Qxc6 {[%clk 0:00:22]}  Qxc6 {[%clk 0:01:53]} 28. Rxc6 {[%clk 0:00:22]}  Rc8 {[%clk 0:01:54]} 29. Rxb6 {[%clk 0:00:20]}  Bf8 {[%clk 0:01:47]} 30. Nd5 {[%clk 0:00:16]} 1-0


[Site "https://www.chess.com"]

[Event "Titled Tuesday Blitz October 31 Early 2023"]
[White "Leiva, Gianmarco"]
[Black "Galchenko, Matvey"]
[WhiteFideId "3804399"]
[BlackFideId "24175480"]
[WhiteElo "2691"]
[BlackElo "2910"]
[Result "1/2-1/2"]
[Round "11"]
[TimeControl "180+1"]
[Date "2023.10.31"]
[WhiteClock "0:00:06"]
[BlackClock "0:00:31"]
[Board "22"]

1. e4 {[%clk 0:03:00]}  e6 {[%clk 0:02:50]} 2. d4 {[%clk 0:03:00]}  d5 {[%clk 0:02:50]} 3. Nc3 {[%clk 0:02:59]}  Bb4 {[%clk 0:02:50]} 4. e5 {[%clk 0:02:58]}  Ne7 {[%clk 0:02:50]} 5. a3 {[%clk 0:02:55]}  Bxc3+ {[%clk 0:02:51]} 6. bxc3 {[%clk 0:02:55]}  c5 {[%clk 0:02:51]} 7. h4 {[%clk 0:02:55]}  Qc7 {[%clk 0:02:51]} 8. Bd2 {[%clk 0:02:39]}  b6 {[%clk 0:02:46]} 9. h5 {[%clk 0:02:38]}  h6 {[%clk 0:02:46]} 10. Qg4 {[%clk 0:02:31]}  cxd4 {[%clk 0:02:33]} 11. cxd4 {[%clk 0:02:31]}  Qxc2 {[%clk 0:02:33]} 12. Rc1 {[%clk 0:02:24]}  Qe4+ {[%clk 0:02:32]} 13. Qxe4 {[%clk 0:02:23]}  dxe4 {[%clk 0:02:32]} 14. Rh4 {[%clk 0:02:10]}  Nbc6 {[%clk 0:02:27]} 15. Rxe4 {[%clk 0:02:07]}  Bb7 {[%clk 0:02:26]} 16. Rg4 {[%clk 0:02:06]}  Rd8 {[%clk 0:02:11]} 17. Nf3 {[%clk 0:02:06]}  a6 {[%clk 0:02:05]} 18. Bd3 {[%clk 0:01:48]}  Kf8 {[%clk 0:01:57]} 19. a4 {[%clk 0:01:47]}  Nd5 {[%clk 0:01:37]} 20. Bxa6 {[%clk 0:01:13]}  Bxa6 {[%clk 0:01:34]} 21. Rxc6 {[%clk 0:01:13]}  Bb7 {[%clk 0:01:27]} 22. Rc2 {[%clk 0:01:09]}  Kg8 {[%clk 0:01:22]} 23. Bc1 {[%clk 0:00:26]}  Kh7 {[%clk 0:01:17]} 24. Ba3 {[%clk 0:00:26]}  Ra8 {[%clk 0:01:17]} 25. Bd6 {[%clk 0:00:24]}  Rxa4 {[%clk 0:01:16]} 26. Nd2 {[%clk 0:00:21]}  Ba6 {[%clk 0:01:03]} 27. Ne4 {[%clk 0:00:21]}  Bd3 {[%clk 0:01:01]} 28. Rb2 {[%clk 0:00:20]}  Rc8 {[%clk 0:00:50]} 29. Kd2 {[%clk 0:00:21]}  Bxe4 {[%clk 0:00:42]} 30. Rxe4 {[%clk 0:00:21]}  Rcc4 {[%clk 0:00:40]} 31. Kd3 {[%clk 0:00:20]}  Rc1 {[%clk 0:00:36]} 32. Rg4 {[%clk 0:00:19]}  Rd1+ {[%clk 0:00:32]} 33. Rd2 {[%clk 0:00:19]}  Rf1 {[%clk 0:00:30]} 34. Ke2 {[%clk 0:00:19]}  Rh1 {[%clk 0:00:29]} 35. Bf8 {[%clk 0:00:19]}  g5 {[%clk 0:00:22]} 36. hxg6+ {[%clk 0:00:19]}  fxg6 {[%clk 0:00:23]} 37. Rg3 {[%clk 0:00:04]}  g5 {[%clk 0:00:23]} 38. Rf3 {[%clk 0:00:04]}  Nf4+ {[%clk 0:00:24]} 39. Rxf4 {[%clk 0:00:02]}  gxf4 {[%clk 0:00:25]} 40. d5 {[%clk 0:00:01]}  exd5 {[%clk 0:00:20]} 41. Rxd5 {[%clk 0:00:02]}  Ra5 {[%clk 0:00:12]} 42. Rd7+ {[%clk 0:00:02]}  Kg6 {[%clk 0:00:13]} 43. Bd6 {[%clk 0:00:02]}  Kf5 {[%clk 0:00:09]} 44. Rf7+ {[%clk 0:00:02]}  Ke6 {[%clk 0:00:10]} 45. Rxf4 {[%clk 0:00:02]}  b5 {[%clk 0:00:11]} 46. Rb4 {[%clk 0:00:02]}  Rg1 {[%clk 0:00:10]} 47. Kf3 {[%clk 0:00:02]}  Ra3+ {[%clk 0:00:10]} 48. Kf4 {[%clk 0:00:02]}  Rxg2 {[%clk 0:00:09]} 49. Rxb5 {[%clk 0:00:02]}  Rxf2+ {[%clk 0:00:10]} 50. Kg4 {[%clk 0:00:02]}  Ra4+ {[%clk 0:00:08]} 51. Kg3 {[%clk 0:00:02]}  Rc2 {[%clk 0:00:08]} 52. Rb3 {[%clk 0:00:02]}  Rac4 {[%clk 0:00:07]} 53. Rb8 {[%clk 0:00:01]}  R2c3+ {[%clk 0:00:07]} 54. Kg2 {[%clk 0:00:01]}  Rd3 {[%clk 0:00:08]} 55. Re8+ {[%clk 0:00:01]}  Kd5 {[%clk 0:00:07]} 56. Rf8 {[%clk 0:00:01]}  Rc2+ {[%clk 0:00:04]} 57. Rf2 {[%clk 0:00:02]}  Rcc3 {[%clk 0:00:03]} 58. Kh2 {[%clk 0:00:02]}  Rg3 {[%clk 0:00:03]} 59. Re2 {[%clk 0:00:02]}  Ke6 {[%clk 0:00:03]} 60. Rf2 {[%clk 0:00:02]}  Rh3+ {[%clk 0:00:04]} 61. Kg2 {[%clk 0:00:02]}  Rhg3+ {[%clk 0:00:05]} 62. Kh2 {[%clk 0:00:03]}  h5 {[%clk 0:00:06]} 63. Rf6+ {[%clk 0:00:03]}  Kd5 {[%clk 0:00:07]} 64. Rf2 {[%clk 0:00:03]}  Rh3+ {[%clk 0:00:07]} 65. Kg2 {[%clk 0:00:03]}  Rhd3 {[%clk 0:00:08]} 66. Re2 {[%clk 0:00:03]}  Re3 {[%clk 0:00:08]} 67. Rxe3 {[%clk 0:00:03]}  Rxe3 {[%clk 0:00:09]} 68. Kh2 {[%clk 0:00:03]}  Ke6 {[%clk 0:00:09]} 69. Kg2 {[%clk 0:00:04]}  Kf5 {[%clk 0:00:10]} 70. Kh2 {[%clk 0:00:04]}  Kg4 {[%clk 0:00:10]} 71. e6 {[%clk 0:00:03]}  Rxe6 {[%clk 0:00:10]} 72. Bb8 {[%clk 0:00:03]}  Rb6 {[%clk 0:00:10]} 73. Bc7 {[%clk 0:00:04]}  Rb2+ {[%clk 0:00:10]} 74. Kh1 {[%clk 0:00:04]}  Rc2 {[%clk 0:00:11]} 75. Bb8 {[%clk 0:00:04]}  Kf3 {[%clk 0:00:11]} 76. Ba7 {[%clk 0:00:04]}  Rb2 {[%clk 0:00:12]} 77. Bc5 {[%clk 0:00:03]}  Rc2 {[%clk 0:00:12]} 78. Ba7 {[%clk 0:00:03]}  h4 {[%clk 0:00:13]} 79. Bb6 {[%clk 0:00:02]}  Rc6 {[%clk 0:00:14]} 80. Ba7 {[%clk 0:00:02]}  Ra6 {[%clk 0:00:14]} 81. Bd4 {[%clk 0:00:02]}  Re6 {[%clk 0:00:15]} 82. Ba7 {[%clk 0:00:02]}  Re1+ {[%clk 0:00:16]} 83. Kh2 {[%clk 0:00:02]}  Rb1 {[%clk 0:00:17]} 84. Bc5 {[%clk 0:00:01]}  Rc1 {[%clk 0:00:17]} 85. Ba7 {[%clk 0:00:01]}  Ra1 {[%clk 0:00:18]} 86. Bc5 {[%clk 0:00:01]}  Rd1 {[%clk 0:00:19]} 87. Bb6 {[%clk 0:00:02]}  Kg4 {[%clk 0:00:19]} 88. Ba7 {[%clk 0:00:02]}  Rd2+ {[%clk 0:00:20]} 89. Kh1 {[%clk 0:00:02]}  Ra2 {[%clk 0:00:21]} 90. Bb6 {[%clk 0:00:02]}  Ra1+ {[%clk 0:00:22]} 91. Kh2 {[%clk 0:00:02]}  Rb1 {[%clk 0:00:23]} 92. Ba7 {[%clk 0:00:03]}  Rb2+ {[%clk 0:00:23]} 93. Kh1 {[%clk 0:00:03]}  Kg3 {[%clk 0:00:23]} 94. Bg1 {[%clk 0:00:02]}  Ra2 {[%clk 0:00:19]} 95. Bd4 {[%clk 0:00:02]}  Re2 {[%clk 0:00:20]} 96. Bc5 {[%clk 0:00:02]}  Re4 {[%clk 0:00:19]} 97. Bd6+ {[%clk 0:00:02]}  Kf3 {[%clk 0:00:19]} 98. Bc5 {[%clk 0:00:02]}  Rc4 {[%clk 0:00:20]} 99. Bb6 {[%clk 0:00:02]}  Rc2 {[%clk 0:00:21]} 100. Ba7 {[%clk 0:00:02]}  Rb2 {[%clk 0:00:21]} 101. Bc5 {[%clk 0:00:02]}  Re2 {[%clk 0:00:22]} 102. Bb6 {[%clk 0:00:02]}  Kg4 {[%clk 0:00:23]} 103. Ba7 {[%clk 0:00:02]}  Rc2 {[%clk 0:00:24]} 104. Bd4 {[%clk 0:00:01]}  Rc1+ {[%clk 0:00:24]} 105. Kh2 {[%clk 0:00:01]}  Rd1 {[%clk 0:00:25]} 106. Bb6 {[%clk 0:00:01]}  Rd2+ {[%clk 0:00:26]} 107. Kh1 {[%clk 0:00:02]}  Rc2 {[%clk 0:00:27]} 108. Ba7 {[%clk 0:00:03]}  Kf3 {[%clk 0:00:27]} 109. Bd4 {[%clk 0:00:03]}  Ra2 {[%clk 0:00:28]} 110. Bb6 {[%clk 0:00:03]}  Kg3 {[%clk 0:00:26]} 111. Bc7+ {[%clk 0:00:03]}  Kh3 {[%clk 0:00:27]} 112. Bb6 {[%clk 0:00:04]}  Rc2 {[%clk 0:00:27]} 113. Ba7 {[%clk 0:00:04]}  Kg3 {[%clk 0:00:28]} 114. Bb8+ {[%clk 0:00:04]}  Kg4 {[%clk 0:00:29]} 115. Ba7 {[%clk 0:00:05]}  Rb2 {[%clk 0:00:30]} 116. Bc5 {[%clk 0:00:05]}  Rd2 {[%clk 0:00:30]} 117. Bb6 {[%clk 0:00:06]}  Rc2 {[%clk 0:00:31]} 118. Ba7 {[%clk 0:00:06]} 1/2-1/2


[Site "https://www.chess.com"]

[Event "Titled Tuesday Blitz October 31 Early 2023"]
[White "BashirovKemal"]
[Black "Baskakov, Egor"]
[BlackFideId "24197866"]
[WhiteElo "2681"]
[BlackElo "2907"]
[Result "0-1"]
[Round "11"]
[TimeControl "180+1"]
[Date "2023.10.31"]
[WhiteClock "0:00:29"]
[BlackClock "0:01:02"]
[Board "23"]

1. d4 {[%clk 0:03:00]}  Nf6 {[%clk 0:02:59]} 2. c4 {[%clk 0:03:01]}  e6 {[%clk 0:03:00]} 3. Nf3 {[%clk 0:03:00]}  d5 {[%clk 0:03:00]} 4. Nc3 {[%clk 0:03:00]}  Ne4 {[%clk 0:03:01]} 5. Qc2 {[%clk 0:02:49]}  f5 {[%clk 0:03:00]} 6. Bf4 {[%clk 0:02:49]}  c6 {[%clk 0:03:00]} 7. e3 {[%clk 0:02:49]}  Be7 {[%clk 0:03:01]} 8. Bd3 {[%clk 0:02:49]}  O-O {[%clk 0:03:01]} 9. h3 {[%clk 0:02:49]}  Bd7 {[%clk 0:03:00]} 10. O-O {[%clk 0:02:48]}  Be8 {[%clk 0:03:01]} 11. Ne5 {[%clk 0:02:48]}  Nd7 {[%clk 0:03:02]} 12. f3 {[%clk 0:02:46]}  Nxc3 {[%clk 0:03:01]} 13. bxc3 {[%clk 0:02:47]}  Nxe5 {[%clk 0:03:02]} 14. Bxe5 {[%clk 0:02:45]}  Bd6 {[%clk 0:03:02]} 15. Bxd6 {[%clk 0:02:44]}  Qxd6 {[%clk 0:03:03]} 16. c5 {[%clk 0:02:42]}  Qe7 {[%clk 0:03:02]} 17. f4 {[%clk 0:02:33]}  b6 {[%clk 0:02:48]} 18. cxb6 {[%clk 0:02:26]}  axb6 {[%clk 0:02:49]} 19. Rfb1 {[%clk 0:02:26]}  b5 {[%clk 0:02:48]} 20. a4 {[%clk 0:02:25]}  bxa4 {[%clk 0:02:48]} 21. Rxa4 {[%clk 0:02:25]}  Rxa4 {[%clk 0:02:48]} 22. Qxa4 {[%clk 0:02:26]}  Qh4 {[%clk 0:02:39]} 23. Qc2 {[%clk 0:02:00]}  c5 {[%clk 0:02:36]} 24. dxc5 {[%clk 0:01:57]}  Qe7 {[%clk 0:02:34]} 25. Rb6 {[%clk 0:01:51]}  Bf7 {[%clk 0:02:20]} 26. Rd6 {[%clk 0:01:36]}  Qc7 {[%clk 0:02:12]} 27. Qa4 {[%clk 0:01:23]}  Qxc5 {[%clk 0:02:11]} 28. Qa6 {[%clk 0:01:11]}  Qxe3+ {[%clk 0:02:09]} 29. Kh1 {[%clk 0:01:11]}  Qc1+ {[%clk 0:02:07]} 30. Bf1 {[%clk 0:01:08]}  Qxf4 {[%clk 0:02:06]} 31. Rd7 {[%clk 0:01:06]}  h6 {[%clk 0:01:44]} 32. Bb5 {[%clk 0:00:59]}  Qc1+ {[%clk 0:01:40]} 33. Bf1 {[%clk 0:00:57]}  Qxc3 {[%clk 0:01:34]} 34. Qe2 {[%clk 0:00:50]}  Rb8 {[%clk 0:01:29]} 35. Qa6 {[%clk 0:00:37]}  Rb1 {[%clk 0:01:09]} 36. Rd8+ {[%clk 0:00:33]}  Kh7 {[%clk 0:01:08]} 37. Rd7 {[%clk 0:00:34]}  Be8 {[%clk 0:01:03]} 38. Re7 {[%clk 0:00:29]}  Bb5 {[%clk 0:01:02]} 0-1


[Site "https://www.chess.com"]

[Event "Titled Tuesday Blitz October 31 Early 2023"]
[White "Komov, Roman"]
[Black "Goltsev, Dmitry"]
[WhiteFideId "24175714"]
[BlackFideId "24176710"]
[WhiteElo "2787"]
[BlackElo "2678"]
[Result "1-0"]
[Round "11"]
[TimeControl "180+1"]
[Date "2023.10.31"]
[WhiteClock "0:00:44"]
[BlackClock "0:00:02"]
[Board "25"]

1. e4 {[%clk 0:03:00]}  e6 {[%clk 0:02:58]} 2. d4 {[%clk 0:03:00]}  d5 {[%clk 0:02:59]} 3. Nc3 {[%clk 0:02:59]}  c5 {[%clk 0:02:59]} 4. exd5 {[%clk 0:02:59]}  exd5 {[%clk 0:03:00]} 5. Nf3 {[%clk 0:02:58]}  Nf6 {[%clk 0:03:00]} 6. Bb5+ {[%clk 0:02:57]}  Nc6 {[%clk 0:03:00]} 7. O-O {[%clk 0:02:57]}  Be7 {[%clk 0:03:01]} 8. dxc5 {[%clk 0:02:56]}  Bxc5 {[%clk 0:03:02]} 9. Re1+ {[%clk 0:02:54]}  Be6 {[%clk 0:03:01]} 10. Be3 {[%clk 0:02:48]}  Bxe3 {[%clk 0:02:59]} 11. Rxe3 {[%clk 0:02:48]}  O-O {[%clk 0:02:59]} 12. Nd4 {[%clk 0:02:48]}  Qb6 {[%clk 0:02:54]} 13. Nxe6 {[%clk 0:02:32]}  fxe6 {[%clk 0:02:54]} 14. Rxe6 {[%clk 0:02:33]}  Ne4 {[%clk 0:02:34]} 15. Qxd5 {[%clk 0:02:09]}  Qxf2+ {[%clk 0:02:19]} 16. Kh1 {[%clk 0:02:08]}  Nxc3 {[%clk 0:02:02]} 17. bxc3 {[%clk 0:02:09]}  Kh8 {[%clk 0:01:50]} 18. Ree1 {[%clk 0:02:08]}  Rad8 {[%clk 0:01:42]} 19. Bxc6 {[%clk 0:02:01]}  Rxd5 {[%clk 0:01:37]} 20. Bxd5 {[%clk 0:02:01]}  Qxc2 {[%clk 0:01:35]} 21. c4 {[%clk 0:02:00]}  b6 {[%clk 0:01:22]} 22. a4 {[%clk 0:01:54]}  Qc3 {[%clk 0:01:12]} 23. h3 {[%clk 0:01:53]}  h6 {[%clk 0:01:03]} 24. Kh2 {[%clk 0:01:46]}  Qd4 {[%clk 0:00:57]} 25. Rad1 {[%clk 0:01:44]}  Qf4+ {[%clk 0:00:51]} 26. Kh1 {[%clk 0:01:43]}  Qb8 {[%clk 0:00:49]} 27. Re7 {[%clk 0:01:40]}  Re8 {[%clk 0:00:46]} 28. Rde1 {[%clk 0:01:40]}  Rxe7 {[%clk 0:00:46]} 29. Rxe7 {[%clk 0:01:41]}  a5 {[%clk 0:00:36]} 30. Be4 {[%clk 0:01:29]}  Qf8 {[%clk 0:00:21]} 31. Re6 {[%clk 0:01:21]}  h5 {[%clk 0:00:10]} 32. Bg6 {[%clk 0:01:11]}  Qf1+ {[%clk 0:00:09]} 33. Kh2 {[%clk 0:01:11]}  Qf4+ {[%clk 0:00:10]} 34. Kg1 {[%clk 0:01:10]}  Qd4+ {[%clk 0:00:10]} 35. Kh1 {[%clk 0:01:05]}  Qa1+ {[%clk 0:00:04]} 36. Kh2 {[%clk 0:01:05]}  Qxa4 {[%clk 0:00:05]} 37. Rxb6 {[%clk 0:00:47]}  Qxc4 {[%clk 0:00:05]} 38. Rb8+ {[%clk 0:00:47]}  Qg8 {[%clk 0:00:05]} 39. Rxg8+ {[%clk 0:00:47]}  Kxg8 {[%clk 0:00:06]} 40. Bxh5 {[%clk 0:00:48]}  a4 {[%clk 0:00:07]} 41. Bd1 {[%clk 0:00:47]}  a3 {[%clk 0:00:08]} 42. Bb3+ {[%clk 0:00:47]}  Kh7 {[%clk 0:00:08]} 43. Kg3 {[%clk 0:00:48]}  Kg6 {[%clk 0:00:09]} 44. Kf4 {[%clk 0:00:48]}  Kh5 {[%clk 0:00:08]} 45. g3 {[%clk 0:00:48]}  Kh6 {[%clk 0:00:05]} 46. g4 {[%clk 0:00:46]}  Kg6 {[%clk 0:00:04]} 47. h4 {[%clk 0:00:46]}  Kf6 {[%clk 0:00:05]} 48. g5+ {[%clk 0:00:46]}  Kg6 {[%clk 0:00:04]} 49. Kg4 {[%clk 0:00:47]}  Kh7 {[%clk 0:00:04]} 50. h5 {[%clk 0:00:47]}  g6 {[%clk 0:00:03]} 51. h6 {[%clk 0:00:43]}  Kh8 {[%clk 0:00:03]} 52. Ba2 {[%clk 0:00:44]}  Kh7 {[%clk 0:00:04]} 53. Kf4 {[%clk 0:00:45]}  Kh8 {[%clk 0:00:05]} 54. Ke5 {[%clk 0:00:46]}  Kh7 {[%clk 0:00:06]} 55. Kf6 {[%clk 0:00:46]}  Kh8 {[%clk 0:00:07]} 56. Ke5 {[%clk 0:00:43]}  Kh7 {[%clk 0:00:02]} 57. Kd4 {[%clk 0:00:44]} 1-0


[Site "https://www.chess.com"]

[Event "Titled Tuesday Blitz October 31 Early 2023"]
[White "Molina, Roberto Junio Brito"]
[Black "Shapiro, Viktor"]
[WhiteFideId "2109450"]
[BlackFideId "4175700"]
[WhiteElo "2819"]
[BlackElo "2548"]
[Result "0-1"]
[Round "11"]
[TimeControl "180+1"]
[Date "2023.10.31"]
[WhiteClock "0:00:02"]
[BlackClock "0:00:54"]
[Board "29"]

1. d4 {[%clk 0:03:00]}  Nf6 {[%clk 0:03:00]} 2. c4 {[%clk 0:03:00]}  c5 {[%clk 0:03:01]} 3. d5 {[%clk 0:03:00]}  e6 {[%clk 0:03:01]} 4. Nc3 {[%clk 0:03:00]}  exd5 {[%clk 0:03:02]} 5. cxd5 {[%clk 0:03:00]}  d6 {[%clk 0:03:03]} 6. e4 {[%clk 0:03:01]}  g6 {[%clk 0:03:03]} 7. Nf3 {[%clk 0:03:01]}  Bg7 {[%clk 0:03:04]} 8. h3 {[%clk 0:03:02]}  O-O {[%clk 0:03:04]} 9. Bd3 {[%clk 0:03:02]}  b5 {[%clk 0:03:02]} 10. O-O {[%clk 0:03:02]}  b4 {[%clk 0:02:59]} 11. Ne2 {[%clk 0:02:52]}  Re8 {[%clk 0:02:59]} 12. Ng3 {[%clk 0:02:52]}  Ba6 {[%clk 0:02:58]} 13. Re1 {[%clk 0:02:47]}  Bxd3 {[%clk 0:02:51]} 14. Qxd3 {[%clk 0:02:48]}  Nbd7 {[%clk 0:02:52]} 15. Bf4 {[%clk 0:02:42]}  Qb6 {[%clk 0:02:43]} 16. Nd2 {[%clk 0:02:40]}  Bf8 {[%clk 0:02:35]} 17. Nc4 {[%clk 0:02:39]}  Qa6 {[%clk 0:02:36]} 18. a4 {[%clk 0:02:28]}  Nb6 {[%clk 0:02:34]} 19. b3 {[%clk 0:02:15]}  Nxc4 {[%clk 0:02:33]} 20. Rac1 {[%clk 0:02:10]}  h5 {[%clk 0:02:07]} 21. Rxc4 {[%clk 0:02:03]}  h4 {[%clk 0:02:03]} 22. Nf1 {[%clk 0:02:01]}  Nd7 {[%clk 0:01:58]} 23. Nd2 {[%clk 0:01:15]}  Ne5 {[%clk 0:01:40]} 24. Bxe5 {[%clk 0:01:14]}  Rxe5 {[%clk 0:01:40]} 25. Nf3 {[%clk 0:01:12]}  Rh5 {[%clk 0:01:39]} 26. e5 {[%clk 0:01:08]}  dxe5 {[%clk 0:01:31]} 27. Nxe5 {[%clk 0:01:06]}  Rd8 {[%clk 0:01:28]} 28. Qf3 {[%clk 0:00:26]}  Rf5 {[%clk 0:01:24]} 29. Qe4 {[%clk 0:00:23]}  Re8 {[%clk 0:01:20]} 30. f4 {[%clk 0:00:23]}  f6 {[%clk 0:01:17]} 31. d6 {[%clk 0:00:21]}  Qxd6 {[%clk 0:01:10]} 32. Qc2 {[%clk 0:00:07]}  fxe5 {[%clk 0:01:10]} 33. fxe5 {[%clk 0:00:07]}  Rfxe5 {[%clk 0:01:10]} 34. Rxe5 {[%clk 0:00:06]}  Rxe5 {[%clk 0:01:11]} 35. Rxh4 {[%clk 0:00:06]}  Re1+ {[%clk 0:01:01]} 36. Kf2 {[%clk 0:00:07]}  Re6 {[%clk 0:00:59]} 37. Qc4 {[%clk 0:00:06]}  Bg7 {[%clk 0:00:57]} 38. Re4 {[%clk 0:00:06]}  Kf7 {[%clk 0:00:56]} 39. Ke2 {[%clk 0:00:06]}  Bd4 {[%clk 0:00:55]} 40. Kd3 {[%clk 0:00:05]}  Bc3+ {[%clk 0:00:54]} 41. Kc2 {[%clk 0:00:02]}  Qd2+ {[%clk 0:00:54]} 0-1


[Site "https://www.chess.com"]

[Event "Titled Tuesday Blitz October 31 Early 2023"]
[White "Xtrmntr78"]
[Black "Sattarov, Bobir"]
[BlackFideId "14203081"]
[WhiteElo "2662"]
[BlackElo "2802"]
[Result "1-0"]
[Round "11"]
[TimeControl "180+1"]
[Date "2023.10.31"]
[WhiteClock "0:00:29"]
[BlackClock "0:00:00"]
[Board "30"]

1. c4 {[%clk 0:03:00]}  Nf6 {[%clk 0:02:59]} 2. Nc3 {[%clk 0:03:01]}  g6 {[%clk 0:03:00]} 3. e4 {[%clk 0:03:01]}  d6 {[%clk 0:03:00]} 4. d4 {[%clk 0:03:01]}  c5 {[%clk 0:03:00]} 5. dxc5 {[%clk 0:03:00]}  Qa5 {[%clk 0:03:00]} 6. Bd3 {[%clk 0:03:00]}  dxc5 {[%clk 0:02:58]} 7. f4 {[%clk 0:02:56]}  Nc6 {[%clk 0:02:57]} 8. e5 {[%clk 0:02:55]}  Nh5 {[%clk 0:02:46]} 9. Ne2 {[%clk 0:02:43]}  Bf5 {[%clk 0:02:43]} 10. Bxf5 {[%clk 0:02:38]}  gxf5 {[%clk 0:02:44]} 11. Qd3 {[%clk 0:02:37]}  e6 {[%clk 0:02:43]} 12. O-O {[%clk 0:02:37]}  Rd8 {[%clk 0:02:15]} 13. Qf3 {[%clk 0:02:36]}  Ng7 {[%clk 0:02:14]} 14. Be3 {[%clk 0:02:32]}  Be7 {[%clk 0:02:09]} 15. Nd5 {[%clk 0:01:54]}  O-O {[%clk 0:01:39]} 16. Nxe7+ {[%clk 0:01:45]}  Nxe7 {[%clk 0:01:40]} 17. Qxb7 {[%clk 0:01:45]}  Rd3 {[%clk 0:01:36]} 18. Bf2 {[%clk 0:01:36]}  Ng6 {[%clk 0:01:33]} 19. g3 {[%clk 0:01:21]}  Rfd8 {[%clk 0:01:17]} 20. Qb5 {[%clk 0:01:17]}  Qd2 {[%clk 0:01:16]} 21. Nc1 {[%clk 0:01:11]}  Rf3 {[%clk 0:01:10]} 22. Nb3 {[%clk 0:01:11]}  Qc2 {[%clk 0:01:03]} 23. Qxc5 {[%clk 0:01:03]}  Nh5 {[%clk 0:00:43]} 24. Nd4 {[%clk 0:00:52]}  Rxd4 {[%clk 0:00:29]} 25. Qxd4 {[%clk 0:00:51]}  Rd3 {[%clk 0:00:23]} 26. Qxa7 {[%clk 0:00:38]}  Nhxf4 {[%clk 0:00:21]} 27. gxf4 {[%clk 0:00:37]}  Nxf4 {[%clk 0:00:22]} 28. Kh1 {[%clk 0:00:34]}  Nh3 {[%clk 0:00:19]} 29. Rg1+ {[%clk 0:00:30]}  Kf8 {[%clk 0:00:00]} 30. Bc5+ {[%clk 0:00:29]} 1-0


[Site "https://www.chess.com"]